Cogmind - Beta 16 @@@ ROGUE MODE // 2025.12.07 @ 13:23:23 Player: BlobtheGreat Result: Destroyed by Z3-ADQ(R) with Subdweller Shrapnel Launcher Performance ------------- Evolutions (0) 0 Regions Visited (2) 400 Robots Destroyed (36) 180 Value Destroyed (832) 832 Prototype IDs (15) 300 Alien Tech Used (0) 0 Bonus (0) 0 TOTAL SCORE: 1712 Bonus ------- None Cogmind --------- Core Integrity 0/250 Matter 300/300 Energy 200/200 System Corruption 0% Temperature Cool (0) Movement Treading (240) Ox1 Location -10/Subcaves Parts ------- > --- POWER (1) -------- Subdweller Power Source > --- PROPULSION (2) --- Light Treads Light Treads > --- UTILITY (2) ------ High-capacity Storage Unit Seismic Detector > --- WEAPON (2) ------- Subdweller Beam Cannon Battle Cannon > --- INVENTORY (20) --- Subdweller Power Source Subdweller Power Source Light Treads Aluminum Leg Aluminum Leg Subdweller Monowheel Flightbrick Seismic Detector Scrap Shield Subdweller Beam Cannon Improved Light Cannon Improved Light Cannon Improved Light Cannon Dirty Datajack (20) Multitool Hammer Peak State ------------ > --- POWER ------------ Subdweller Power Source > --- PROPULSION ------- Light Treads Light Treads > --- UTILITY ---------- High-capacity Storage Unit Seismic Detector > --- WEAPON ----------- Subdweller Beam Cannon Improved Light Cannon > --- INVENTORY -------- Subdweller Power Source Subdweller Power Source Light Treads Aluminum Leg Aluminum Leg Compact Wheel Subdweller Monowheel Flightbrick Seismic Detector Scrap Shield Improved Light Cannon Improved Light Cannon Improved Light Cannon Dirty Datajack Hammer [Rating: 16] Favorites ----------- Power Ion Engine Engine Ion Engine Propulsion Light Treads Treads Light Treads Utility Seismic Detector Device Seismic Detector Storage High-capacity Storage Unit Weapon Improved Light Cannon Energy Cannon Subdweller Beam Cannon Ballistic Gun Light Assault Rifle Ballistic Cannon Improved Light Cannon Build | -11 -10 -10 ------- Run | Yrd Mat Sub Slots Evolved . | . . . Power . | . . . Propulsion . | . . . Utility . | . . . Weapon . | . . . Parts Attached 15 | 7 3 5 Power 2 | 1 . 1 Engine 2 | 1 . 1 Core . | . . . Reactor . | . . . Propulsion 3 | 2 . 1 Treads 3 | 2 . 1 Leg . | . . . Wheel . | . . . Hover . | . . . Flight . | . . . Utility 3 | 2 1 . Device 1 | 1 . . Storage 2 | 1 1 . Processor . | . . . Hackware . | . . . Protection . | . . . Artifact . | . . . Weapon 7 | 2 2 3 Energy Gun . | . . . Energy Cannon 2 | . . 2 Ballistic Gun 2 | 2 . . Ballistic Cannon 3 | . 2 1 Launcher . | . . . Special Weapon . | . . . Impact Weapon . | . . . Slashing Weapon . | . . . Piercing Weapon . | . . . Special Melee Weapon . | . . . Unidentified Prototypes . | . . . Parts Lost 1 | . . 1 Power . | . . . Propulsion 1 | . . 1 Utility . | . . . Weapon . | . . . Highest Loss Streak 1 | . . 1 To Critical Strikes . | . . . Average Backups 14 | 4 9 17 Power 2 | . 1 2 Propulsion 4 | 3 4 5 Utility 1 | . 1 2 Weapon 5 | . 3 7 Tool/Special . | . . . Unused Backups 21 | . 1 20 Power 3 | . . 3 Propulsion 7 | . 1 6 Utility 4 | . . 4 Weapon 5 | . . 5 Tool/Special 2 | . . 2 Average Slot Usage (%) 99 | . 100 99 Engine 13 | . 14 13 Treads 28 | . 28 28 Device 14 | . 14 14 Storage 14 | . 14 14 Energy Cannon 8 | . . 11 Ballistic Gun 8 | . 28 . Ballistic Cannon 11 | . . 16 Peak Build Rating 16 | 7 10 16 Average Rating 10 | 6 7 12 On Entrance 5 | . 7 10 Avg Prop Armor Cover (%) . | . . . Naked Turns . | . . . Heaviest Build 58 | 14 54 58 Greatest Support 40 | 40 40 40 Greatest Overweight (x) 1 | . 1 1 Average Overweight (x) . | . . 1 Largest Inventory Capacity 20 | 8 20 20 Average Capacity 18 | 7 16 20 Most Carried 20 | 7 14 20 Average Carried 15 | 5 9 19 Final Capacity 20 | 8 20 20 Final Carried 20 | 7 14 20 Class Distribution -------------------- 67% | Mutant 32% | Scavenger-Mutant Dominant Class ---------------- Mutant | -10/Materials Mutant | -10/Subcaves Resources | -11 -10 -10 ----------- Run | Yrd Mat Sub Matter Collected 599 | 366 95 138 Remotely . | . . . Salvage Created 1191 | 191 331 669 Parts 82 | 16 31 35 Haulers Intercepted 2 | . 2 . Recyclers Shooed 1 | . 1 . Parts Field Recycled . | . . . Retrieved Matter . | . . . Parts Self-Destructed 19 | . . 19 Prevented . | . . . Parts Restored . | . . . Kills | -11 -10 -10 ------- Run | Yrd Mat Sub Combat Hostiles Destroyed 23 | . 7 16 Guns 7 | . 7 . Cannons 16 | . . 16 Classes Destroyed 10 | 3 6 1 Worker 1 | 1 . . Builder 2 | . 2 . Tunneler 4 | 4 . . Hauler 2 | . 2 . Recycler 1 | 1 . . Operator 1 | . 1 . Watcher 2 | . 2 . Swarmer 6 | . 6 . Grunt 3 | . 1 2 Subdweller 14 | . . 14 Best Kill Streak 4 | 3 4 2 Combat Bots Only 4 | . 4 2 Max Kills in Single Turn 2 | 1 2 1 Gunslinging . | . . . Exploded . | . . . Melee . | . . . Uniques/NPCs Destroyed . | . . . Combat | -11 -10 -10 -------- Run | Yrd Mat Sub Hostile Shots Fired 79 | . 30 49 Missed 25 | . 8 17 Hits 54 | . 22 32 Projectile 54 | . 22 32 AOE 4 | . . 4 Damage Taken 969 | . 176 793 Core 250 | . 43 207 Absorbed by Shields . | . . . Core Remaining (%) 100 | 100 . . Volleys Fired 127 | 24 25 78 Largest 2 | 2 2 2 Hottest 80 | 40 40 80 Shots Fired 181 | 48 50 83 Gun 98 | 48 50 . Cannon 83 | . . 83 Launcher . | . . . Special . | . . . Kinetic 110 | 48 50 12 Thermal 71 | . . 71 Explosive . | . . . Electromagnetic . | . . . Robot Hit Streak 19 | 5 8 19 Robot Miss Streak 4 | 4 2 2 Penetration Max . | . . . Secondary Targets 1 | . 1 . Max Gunslinging Chain 1 | . 1 . Shots Hit Robots 104 | 26 28 50 Core Hits 46 | 9 20 17 Critical Kills . | . . . Critical Parts Destroyed . | . . . Critical Strikes 1 | . . 1 Blast 1 | . . 1 Melee Attacks . | . . . Impact . | . . . Slashing . | . . . Piercing . | . . . Sneak Attacks . | . . . Combat Hostiles . | . . . Follow-up Attacks . | . . . Damage Inflicted 1919 | 266 324 1329 Guns 574 | 266 308 . Cannons 1329 | . . 1329 Explosions . | . . . Melee . | . . . Ramming 16 | . 16 . Kinetic 736 | 266 308 162 Thermal 1167 | . . 1167 Explosive . | . . . Electromagnetic . | . . . Impact . | . . . Slashing . | . . . Piercing . | . . . Highest Corruption . | . . . Average Corruption . | . . . Corruption Purged . | . . . Corruption Blocked . | . . . Overload Shots . | . . . Overflow Damage . | . . . Projectiles . | . . . Explosions . | . . . Melee . | . . . Knockbacks 1 | . . 1 Impact . | . . . Kinetic 1 | . . 1 Secondary . | . . . Self-Inflicted Damage . | . . . Shots . | . . . Rammed 6 | . 6 . Targets Rammed 6 | . 6 . Kicked . | . . . Crushed . | . . . Highest Temperature 18 | . . 18 Average Temperature 7 | . . 7 Received Heat Transfer 120 | . . 120 Siege Activations . | . . . Martial Activations . | . . . Shielding Activations . | . . . Robots Disrupted . | . . . Combat Hostiles . | . . . Robots Corrupted . | . . . Combat Hostiles . | . . . Parts Fried . | . . . Impact Corruptions . | . . . Robots Melted . | . . . Combat Hostiles . | . . . Parts Melted 2 | . . 2 Heat Transferred 1554 | . . 1554 Parts Sabotaged . | . . . Parts Stolen . | . . . Parts Stripped . | . . . Power Chain Reactions . | . . . Alert | -11 -10 -10 ------- Run | Yrd Mat Sub Maximum Alert Level . | . . . Low Security (%) 100 | 100 100 . Level 1 . | . . . Level 2 . | . . . Level 3 . | . . . Level 4 . | . . . Level 5 . | . . . High Security . | . . . Max Security . | . . . Peak Influence 110 | 10 110 . Initial . | . . . Average 20 | . 24 . Influence Increases 422 | 30 237 155 Destroy 0b10 Robot/C 180 | . 140 40 Destroy 0b10 Robot/NC 65 | 30 35 . Destroy Leader 38 | . 28 10 Successful Hack 34 | . 34 . Lose Combat Pursuer 105 | . . 105 Influence Decreases 350 | 30 237 83 Time Decay 340 | 30 237 73 Lost Part 10 | . . 10 Squads Dispatched . | . . . Investigation . | . . . Extermination . | . . . Reinforcement . | . . . Assault . | . . . Garrison . | . . . Intercept . | . . . Searches Triggered . | . . . Construction Impeded . | . . . Haulers Reinforced . | . . . Active Scanning Responses . | . . . Cargo Convoy Interrupts . | . . . Stealth | -11 -10 -10 --------- Run | Yrd Mat Sub Distress Signals . | . . . Communications Jammed . | . . . Distress Signals . | . . . Times Spotted 33 | . 11 22 Peak Tracking Total 4 | . 4 2 Tactical Retreats 3 | . . 3 Traps | -11 -10 -10 ------- Run | Yrd Mat Sub Traps Triggered 1 | . . 1 Indirectly . | . . . Trap Hack Attempts . | . . . Triggered . | . . . Disarmed . | . . . Reprogrammed . | . . . Reused . | . . . Traps Extracted . | . . . Installed . | . . . Triggered . | . . . Machines | -11 -10 -10 ---------- Run | Yrd Mat Sub Machines Disabled 1 | . . 1 Max in Single Turn 1 | . . 1 Machines Repaired . | . . . Machines Dismantled . | . . . Machines Sabotaged . | . . . Overloaded Fab Kills . | . . . Hacking | -11 -10 -10 --------- Run | Yrd Mat Sub Machines Accessed 8 | . 7 1 Terminals 7 | . 7 . Fabricators . | . . . Repair Stations . | . . . Recycling Units . | . . . Scanalyzers . | . . . Garrison Access . | . . . Total Hacks 19 | . 18 1 Successful 12 | . 11 1 Failed 7 | . 7 . Catastrophic 3 | . 3 . Database Lockouts . | . . . Manual 12 | . 12 . Terminals 18 | . 18 . Fabricators . | . . . Repair Stations . | . . . Recycling Units . | . . . Scanalyzers . | . . . Garrison Access . | . . . Terminal Hacks 7 | . 6 1 Robot Analysis 2 | . 2 . Prototype ID Bank 1 | . 1 . Hauler Manifests 1 | . 1 . Zone Layout 2 | . 2 . Proto ID Catalog 1 | . . 1 Fabricator Hacks . | . . . Repair Station Hacks . | . . . Recycling Unit Hacks . | . . . Scanalyzer . | . . . Garrison Access Hacks . | . . . Unauthorized Hacks 5 | . 5 . Terminals 5 | . 5 . Botnet 1 | . 1 . Skim 4 | . 4 . Fabricators . | . . . Repair Stations . | . . . Recycling Units . | . . . Scanalyzers . | . . . Garrison Access . | . . . Data Cores Recovered 1 | . 1 . Used . | . . . Hacking Detections 5 | . 5 . Full Trace Events . | . . . Feedback Events . | . . . Feedback Blocked . | . . . Robot Schematics Acquired . | . . . Robots Built . | . . . Authchips . | . . . Time . | . . . Total Robot Build Rating . | . . . Part Schematics Acquired . | . . . Parts Built . | . . . Authchips . | . . . Time . | . . . Total Part Build Rating . | . . . Part Studies Acquired . | . . . Parts Repaired . | . . . Time . | . . . Parts Recycled . | . . . Recycled Matter . | . . . Retrieved Matter . | . . . Retrieved Components . | . . . Parts Scanalyzed . | . . . Part Schematics Acquired . | . . . Parts Damaged . | . . . Bothacking | -11 -10 -10 ------------ Run | Yrd Mat Sub Used RIF Installer . | . . . Robots Hacked . | . . . Non-combat . | . . . Combat . | . . . Robot Hacks Applied . | . . . Relay Couplers Released . | . . . Fabnet Peak Effective % . | . . . Robots Rewired . | . . . Allies Hacked . | . . . Hacks Repelled . | . . . Allies | -11 -10 -10 -------- Run | Yrd Mat Sub Total Allies . | . . . Largest Group . | . . . Highest-Rated Group . | . . . Highest-Rated Ally . | . . . Total Orders . | . . . Ally Attacks . | . . . Total Damage . | . . . Kills . | . . . Allies Corrupted . | . . . Allies Melted . | . . . Intel | -11 -10 -10 ------- Run | Yrd Mat Sub Active Infowar (turns) 4013 | 141 1137 2735 Seismic 4013 | 141 1137 2735 Robot Analysis Total 2 | . 2 . Derelict Logs Recovered . | . . . Drone Launches . | . . . Drone Recoveries . | . . . Exploration | -11 -10 -10 ------------- Run | Yrd Mat Sub Turns Passed 4102 | 230 1137 2735 Spaces Moved 1546 | 93 499 954 Core 2 | 2 . . Treads 1544 | 91 499 954 Legs . | . . . Wheels . | . . . Hover . | . . . Flight . | . . . Fastest Speed 50 | 50 160 240 Average Speed 225 | 157 209 240 Slowest Speed 240 | 160 240 240 Overloaded Moves . | . . . Propulsion Burnouts . | . . . Robots Hopped . | . . . Potential Cave-ins 2 | . . 2 Cave-ins Triggered . | . . . Exploration Rate (%) 53 | 6 82 71 Regions Visited 2 Branch Regions 1 Pre-discovered Areas . | . . . Known Exits Taken . | . . . Unknown Exits Taken 2 | 1 1 . Scrap Searched 14 | . . 14 Spaces Dug 6 | . . 6 Terrain Destroyed 10 | . . 10 Melee . | . . . Projectile 10 | . . 10 AOE . | . . . Terrain Rammed . | . . . Walls Destroyed . | . . . Machines Disabled . | . . . Actions | -11 -10 -10 --------- Run | Yrd Mat Sub Total 1993 | 130 544 1319 Wait 257 | . 2 255 Move 1544 | 92 498 954 Hop . | . . . Pick Up 28 | 7 8 13 Fast Attach 8 | 7 . 1 Attach 1 | . . 1 Detach . | . . . Swap 8 | . 3 5 Drop 14 | . 2 12 Fire 127 | 24 25 78 Melee . | . . . Ram . | . . . Kick . | . . . Crush 6 | . 6 . Escape Stasis . | . . . Rewire . | . . . Trap . | . . . Miscellaneous . | . . . Route ------- -11/Scrapyard -10/Materials (discovered 5 exits: [*Mat x3] / [*Min] / *Sub) -10/Subcaves (discovered 1 exit: [*Mat]) History --------- Turn | Location | Event 35 | -11/Scrapyard | Discovered new exit (range 16) 231 | -11/Scrapyard | Entered Materials 308 | -10/Materials | Build established: Mutant 456 | -10/Materials | Discovered new exit (range 16) 513 | -10/Materials | Discovered new exit (range 9) 613 | -10/Materials | Discovered new exit (range 14) 759 | -10/Materials | Discovered new exit (range 6) 966 | -10/Materials | Discovered new exit (range 15) 1368 | -10/Materials | Entered Subcaves 1443 | -10/Subcaves | Discovered new exit (range 5) 1571 | -10/Subcaves | Shifting Twisted Machinery released Riot Gun 1578 | -10/Subcaves | Shifting Twisted Machinery released Mak. Power Source 2138 | -10/Subcaves | Core integrity fell below 50% 2261 | -10/Subcaves | Shifting Twisted Machinery released Sub. Laser 3080 | -10/Subcaves | Build established: Scavenger-Mutant 3281 | -10/Subcaves | Visited 4L-MR0's lab 3305 | -10/Subcaves | Found Flightbrick 4103 | -10/Subcaves | Disturbed a concealed Subdweller 4103 | -10/Subcaves | Destroyed by Z3-ADQ(R) with Subdweller Shrapnel Launcher Last Messages --------------- 04036_ Aluminum Leg fries itself beyond repair. 04036_ Acquired 10 matter. 04038_ Heat Sink fries itself beyond repair. 04039_ Imp. Heat Sink fries itself beyond repair. 04043_ Aluminum Leg fries itself beyond repair. 04072_ Dropped Com. Wheel. 04072_ Acquired Sub. Beam Cannon. 04095_ Searching scrap... 04095_ Found Mak. Light Armor Plating. 04095_ Found 47 Matter. 04097_ Searching scrap... 04097_ Found Flamer. 04097_ Found 49 Matter. 04100_ Searching scrap... 04100_ Found Battle Rifle. 04100_ Found Battle Cannon. 04100_ Found 63 Matter. 04103_ Z3-ADQ(R) angrily emerges from the Twisted Machinery. Map ----- +----------------------------------------------------+ | ?????????????????????????????????????????????????? | | ?????????????????????????????????????????????????? | | ?????????????????????????????????????????????????? | | ?????????????????????????????????????????????????? | | ?????????????????????????????????????????????????? | | ?????????????????????????????????????????????????? | | ?????????????????????????????????????????????????? | | ?????????????????????????????????????????????????? | | ?????????????????????????????????????????????????? | | ?????????????????????????????????????????????????? | | ?????????????????????????????????????????????????? | | ?????????????????????????????????????????????????? | | ????????????????????????????????? "??????????????? | | ????????????????????????????????# ""?????????????? | | ????????????????????????????????# ?????????????? | | ????????????????????????????????# "###???????????? | | ???????????????????????????????? # ##??????????? | | ????????????????????????????????# ##?????????? | | ?######????????????????????????? ? #?????????? | | ?#%*%"##???????????????????????## ## #?????????? | | ?##"[%&#??????????????????????## ##????????? | | ??####]#?????????????????????## #????????? | | ??# &"#????????????????????## #????????? | | #### ########???????????###?# #????????? | | " "### #???????????#%#### #????????? | | # #???????????#@<# #"! #????????? | | ####???????????#R|# #????????? | | ### #####??????????#<%# #" = #????????? | | #?### ##?????????##!%"## #????????? | | ????#### #??????????#### ##????????? | | ???????## #?????????????## ##?????????? | | ????????## #??????????????# ## ##?????????? | | ?????????# #??????????????#### # #?????????? | | ????###### ##?????????????????### #?????????? | | ???## #???????????????###??# ##?????????? | | ???# ##???????????????# ##?## #?????????? | | ???### ####????????????????# ### ##?????????? | | ?????## ###?????????????????# ## ##?????????? | | ??????# ##????????????????## # #?????????? | | ??????# ###???????????????# %% ##?????????? | | ??????## ##??????????????## # #??????????? | | ???????# #??????????????## #??????????? | | ??????## #?????????????## ## #??????????? | | ???##?# ###???????????# ### ##?????????? | | ?? ### #???????????## #?## ##????????? | | ?# ########?##### ##?## #????????? | | ?# ## # # ### # #?# #????????? | | # #?### ## ##?# #????????? | | #????# # # ## ## ## #?# #????????? | | #??#### ############ #?# # #????????? | +----------------------------------------------------+ Best States ------------- Heat Dissipation 25 Energy Generation 10 Energy Capacity 250 Matter Stores 300 Matter Capacity 300 Sight Range 16 Terrain Scan Density 10 Evasion (%) 40 Recoil Reduction 2 Item Schematics ----------------- None Robot Schematics ------------------ None Fabricated ------------ Nothing Repaired ---------- Nothing Studied --------- None Alien Tech Used ----------------- None Achievements -------------- None Challenges ------------ None Game ------ Seed StealthIonicDrillbomb Manual? 0 Play Time 00:16:37 Cumulative 209.1 hours Start 2025.12.07 @ 13:12:53 End 2025.12.07 @ 13:23:23 Sessions 1 Manual Loads 0 Difficulty Rogue Special Mode None Game No. 197 Rogue 197 Adventurer 0 Explorer 0 Win Type - Total 10 Types 7/0/2/0/0/0/0/0/0/1 Lore% 84 Gallery% 73 Achievement% 59 Wizard Run 0 Options --------- Layout 1 ASCII 0 Keyboard 1 Movement Arrows Keybinds 0 Fullscreen 1 Font 24/Smallcaps Map View 50x40 Zoom Use 0% Tactical HUD 1 Map Filters NONE Filters NONE Steam 1 RUN: eb206bae-941e-404a-8553-415454d2f431